[Event "*** Titled Tuesday Blitz"]
[Site "Chess.com"]
[Date "2019.06.04"]
[Round "2"]
[White "Marcus_Harvey"]
[Black "Indianlad"]
[Result "1-0"]
[WhiteElo "2631"]
[BlackElo "2874"]
[TimeControl "180+2"]
[EndTime "13:23:39 PDT"]
[Termination "Marcus_Harvey won by resignation"]

1. d4 {[%clk 0:03:01.9]} 1... Nf6 {[%clk 0:03:00.2]} 2. Nf3 {[%clk 0:03:02.8]}
2... d5 {[%clk 0:03:01.1]} 3. c4 {[%clk 0:03:03.8]} 3... e6 {[%clk 0:03:01.7]}
4. Nc3 {[%clk 0:03:04.5]} 4... a6 {[%clk 0:03:03.2]} 5. cxd5 {[%clk 0:03:04.6]}
5... exd5 {[%clk 0:03:05.1]} 6. Bg5 {[%clk 0:03:05.3]} 6... Be6 {[%clk
0:03:06.6]} 7. e3 {[%clk 0:03:05]} 7... Nbd7 {[%clk 0:03:07.8]} 8. Bd3 {[%clk
0:03:05.6]} 8... Bd6 {[%clk 0:03:08.9]} 9. O-O {[%clk 0:03:05.6]} 9... c6 {[%clk
0:03:09.9]} 10. Ne2 {[%clk 0:03:05.9]} 10... h6 {[%clk 0:03:05.7]} 11. Bf4
{[%clk 0:03:06.4]} 11... Qc7 {[%clk 0:03:03.3]} 12. Bxd6 {[%clk 0:03:06.3]}
12... Qxd6 {[%clk 0:03:05.2]} 13. Rc1 {[%clk 0:03:04.1]} 13... Bg4 {[%clk
0:03:05.2]} 14. Ng3 {[%clk 0:03:04]} 14... h5 {[%clk 0:03:04.7]} 15. h3 {[%clk
0:03:03.4]} 15... Bxf3 {[%clk 0:02:49.8]} 16. Qxf3 {[%clk 0:03:04.1]} 16... g6
{[%clk 0:02:51.2]} 17. e4 {[%clk 0:03:04.5]} 17... dxe4 {[%clk 0:02:51.6]} 18.
Nxe4 {[%clk 0:03:05.5]} 18... Nxe4 {[%clk 0:02:52.8]} 19. Qxe4+ {[%clk
0:03:05.7]} 19... Kf8 {[%clk 0:02:53]} 20. Rfe1 {[%clk 0:03:01.9]} 20... Rd8
{[%clk 0:02:52.6]} 21. Bc4 {[%clk 0:02:39.9]} 21... Nf6 {[%clk 0:02:40.7]} 22.
Qe5 {[%clk 0:02:35.3]} 22... Kg7 {[%clk 0:02:28.8]} 23. Qxd6 {[%clk 0:02:33.5]}
23... Rxd6 {[%clk 0:02:29.1]} 24. Re7 {[%clk 0:02:34.3]} 24... Rd7 {[%clk
0:02:28.5]} 25. Rxd7 {[%clk 0:02:29.1]} 25... Nxd7 {[%clk 0:02:28.3]} 26. d5
{[%clk 0:02:28.3]} 26... c5 {[%clk 0:02:13.5]} 27. a4 {[%clk 0:02:26.3]} 27...
Nb6 {[%clk 0:02:06.9]} 28. a5 {[%clk 0:02:26.5]} 28... Nxc4 {[%clk 0:02:05.9]}
29. Rxc4 {[%clk 0:02:27.6]} 29... Re8 {[%clk 0:01:47.6]} 30. Kf1 {[%clk
0:02:27.9]} 30... Kf6 {[%clk 0:01:37.5]} 31. Rxc5 {[%clk 0:02:28.9]} 31... Rd8
{[%clk 0:01:38.1]} 32. b4 {[%clk 0:02:25.7]} 32... Rd7 {[%clk 0:01:34.4]} 33. b5
{[%clk 0:01:47.2]} 33... axb5 {[%clk 0:01:20.2]} 34. Rxb5 {[%clk 0:01:49.1]}
34... Ke5 {[%clk 0:01:21.5]} 35. Ke2 {[%clk 0:01:45.7]} 35... Kd4 {[%clk
0:01:22]} 36. d6 {[%clk 0:01:42.7]} 36... Rxd6 {[%clk 0:00:50.4]} 37. Rxb7
{[%clk 0:01:40.2]} 37... Ra6 {[%clk 0:00:52.3]} 38. Rxf7 {[%clk 0:01:34.7]}
38... Rxa5 {[%clk 0:00:52.6]} 39. Re7 {[%clk 0:01:30.7]} 39... Rf5 {[%clk
0:00:46.9]} 40. h4 {[%clk 0:01:26]} 40... g5 {[%clk 0:00:46.6]} 41. hxg5 {[%clk
0:01:23]} 41... Rxg5 {[%clk 0:00:48.5]} 42. Kf3 {[%clk 0:01:23.2]} 42... Rf5+
{[%clk 0:00:48.9]} 43. Kg3 {[%clk 0:01:23.7]} 43... Rg5+ {[%clk 0:00:50.3]} 44.
Kh3 {[%clk 0:01:23.4]} 44... Kd5 {[%clk 0:00:50.7]} 45. f3 {[%clk 0:01:18]}
45... Kd6 {[%clk 0:00:50.9]} 46. Re2 {[%clk 0:01:18.9]} 46... Rf5 {[%clk
0:00:42.9]} 47. Kh4 {[%clk 0:01:19.4]} 47... Rd5 {[%clk 0:00:44.4]} 48. g4
{[%clk 0:01:16.8]} 48... hxg4 {[%clk 0:00:44.7]} 49. fxg4 {[%clk 0:01:18.7]}
49... Ra5 {[%clk 0:00:35.2]} 50. g5 {[%clk 0:01:19.5]} 50... Kd7 {[%clk
0:00:30.9]} 51. Kh5 {[%clk 0:01:20.2]} 51... Ra8 {[%clk 0:00:29.4]} 52. g6
{[%clk 0:01:21.1]} 52... Rh8+ {[%clk 0:00:28.9]} 53. Kg5 {[%clk 0:01:22.1]}
53... Re8 {[%clk 0:00:29.9]} 54. Rxe8 {[%clk 0:01:21.9]} 54... Kxe8 {[%clk
0:00:31.8]} 55. Kh6 {[%clk 0:01:23.1]} 1-0

[Event "*** Titled Tuesday Blitz"]
[Site "Chess.com"]
[Date "2019.06.04"]
[Round "2"]
[White "Ruchess27"]
[Black "Filip_Covic"]
[Result "1-0"]
[WhiteElo "2257"]
[BlackElo "2354"]
[TimeControl "180+2"]
[EndTime "13:23:42 PDT"]
[Termination "Ruchess27 won by resignation"]

1. d4 {[%clk 0:03:01.9]} 1... Nf6 {[%clk 0:03:01.1]} 2. g3 {[%clk 0:03:01.5]}
2... e6 {[%clk 0:03:00.6]} 3. Bg2 {[%clk 0:03:02.3]} 3... d5 {[%clk 0:03:01.9]}
4. Nf3 {[%clk 0:03:03.4]} 4... Be7 {[%clk 0:03:03.3]} 5. O-O {[%clk 0:03:05]}
5... O-O {[%clk 0:03:04.7]} 6. b3 {[%clk 0:03:06.6]} 6... c5 {[%clk 0:03:04.4]}
7. Bb2 {[%clk 0:03:07]} 7... Nc6 {[%clk 0:03:05.8]} 8. e3 {[%clk 0:03:07.8]}
8... Ne4 {[%clk 0:03:04]} 9. Nbd2 {[%clk 0:03:08]} 9... Nxd2 {[%clk 0:03:03]}
10. Qxd2 {[%clk 0:03:08.4]} 10... Bf6 {[%clk 0:03:01.5]} 11. Ne5 {[%clk
0:03:01]} 11... Qc7 {[%clk 0:03:01.1]} 12. f4 {[%clk 0:02:51.3]} 12... g6 {[%clk
0:02:59.8]} 13. Qf2 {[%clk 0:02:27.3]} 13... Bg7 {[%clk 0:02:45]} 14. Rac1
{[%clk 0:02:22.9]} 14... Nxe5 {[%clk 0:02:42.2]} 15. dxe5 {[%clk 0:02:11.5]}
15... c4 {[%clk 0:02:35.3]} 16. e4 {[%clk 0:02:08]} 16... dxe4 {[%clk
0:02:26.2]} 17. Ba3 {[%clk 0:01:46.8]} 17... Rd8 {[%clk 0:02:22.2]} 18. Bd6
{[%clk 0:01:47.3]} 18... Qc6 {[%clk 0:01:37.3]} 19. bxc4 {[%clk 0:01:18.5]}
19... Qxc4 {[%clk 0:01:29.8]} 20. Rfd1 {[%clk 0:01:18.9]} 20... f5 {[%clk
0:00:51.6]} 21. exf6 {[%clk 0:01:09.8]} 21... Bxf6 {[%clk 0:00:50.5]} 22. Be5
{[%clk 0:00:47.6]} 22... Be7 {[%clk 0:00:50.6]} 23. Rxd8+ {[%clk 0:00:41.6]}
23... Bxd8 {[%clk 0:00:50.1]} 24. Rd1 {[%clk 0:00:34.8]} 24... Bb6 {[%clk
0:00:38.8]} 25. Bd4 {[%clk 0:00:35.2]} 25... Qd5 {[%clk 0:00:15.1]} 26. c4
{[%clk 0:00:28.1]} 26... Qd8 {[%clk 0:00:10.6]} 27. Bxe4 {[%clk 0:00:25]} 27...
e5 {[%clk 0:00:10.2]} 28. Bd5+ {[%clk 0:00:20.3]} 28... Kf8 {[%clk 0:00:07.8]}
29. fxe5+ {[%clk 0:00:20.2]} 29... Kg7 {[%clk 0:00:06]} 30. Qf7+ {[%clk
0:00:20]} 30... Kh6 {[%clk 0:00:06.6]} 31. Qf4+ {[%clk 0:00:19.2]} 31... Qg5
{[%clk 0:00:06.8]} 32. Bxb6 {[%clk 0:00:16.1]} 32... axb6 {[%clk 0:00:06.7]} 33.
Qf8+ {[%clk 0:00:16.2]} 1-0

[Event "*** Titled Tuesday Blitz"]
[Site "Chess.com"]
[Date "2019.06.04"]
[Round "2"]
[White "ChainsOfFantasia"]
[Black "MaestroASK"]
[Result "1-0"]
[WhiteElo "2528"]
[BlackElo "2515"]
[TimeControl "180+2"]
[EndTime "13:23:43 PDT"]
[Termination "ChainsOfFantasia won by resignation"]

1. d4 {[%clk 0:03:01.9]} 1... d6 {[%clk 0:03:01.9]} 2. Nf3 {[%clk 0:03:01.3]}
2... g6 {[%clk 0:03:03.8]} 3. c4 {[%clk 0:03:01.9]} 3... Bg7 {[%clk 0:03:04.7]}
4. Nc3 {[%clk 0:03:03.4]} 4... c6 {[%clk 0:03:05.5]} 5. g3 {[%clk 0:03:03.2]}
5... e5 {[%clk 0:03:05.7]} 6. Bg2 {[%clk 0:03:04.9]} 6... f6 {[%clk 0:03:05.7]}
7. O-O {[%clk 0:03:05]} 7... Nh6 {[%clk 0:03:05.6]} 8. dxe5 {[%clk 0:03:02.2]}
8... dxe5 {[%clk 0:03:05.3]} 9. Qb3 {[%clk 0:02:57.8]} 9... Qe7 {[%clk
0:03:01.2]} 10. Be3 {[%clk 0:02:47.2]} 10... Nf5 {[%clk 0:02:59.5]} 11. Ne4
{[%clk 0:02:45.5]} 11... Nxe3 {[%clk 0:02:52.9]} 12. Qxe3 {[%clk 0:02:47.4]}
12... O-O {[%clk 0:02:51.5]} 13. c5 {[%clk 0:02:45.8]} 13... Na6 {[%clk
0:02:50]} 14. Nd6 {[%clk 0:02:43.3]} 14... Be6 {[%clk 0:02:43.7]} 15. Rfd1
{[%clk 0:02:44.2]} 15... Rfd8 {[%clk 0:02:43]} 16. a3 {[%clk 0:02:38.2]} 16...
Bd5 {[%clk 0:02:40]} 17. b4 {[%clk 0:02:36.8]} 17... Rab8 {[%clk 0:02:29.9]} 18.
Nd2 {[%clk 0:02:37.5]} 18... f5 {[%clk 0:02:23.4]} 19. N2c4 {[%clk 0:02:16.8]}
19... Nc7 {[%clk 0:02:19.8]} 20. Na5 {[%clk 0:02:10.5]} 20... Bxg2 {[%clk
0:02:17.1]} 21. Kxg2 {[%clk 0:02:10.9]} 21... Nd5 {[%clk 0:02:16.1]} 22. Qb3
{[%clk 0:02:11.5]} 22... e4 {[%clk 0:02:01.4]} 23. Ra2 {[%clk 0:02:05.7]} 23...
Be5 {[%clk 0:01:37.6]} 24. Rxd5 {[%clk 0:01:31]} 24... cxd5 {[%clk 0:01:35.8]}
25. Qxd5+ {[%clk 0:01:32.9]} 25... Kg7 {[%clk 0:01:32.8]} 26. Nac4 {[%clk
0:01:33.4]} 26... Bxd6 {[%clk 0:01:28.4]} 27. cxd6 {[%clk 0:01:26.1]} 27... Qf7
{[%clk 0:01:26.1]} 28. Qd4+ {[%clk 0:01:24.6]} 28... Kg8 {[%clk 0:01:26.1]} 29.
Rd2 {[%clk 0:01:16.4]} 29... Rbc8 {[%clk 0:01:23.5]} 30. Ne5 {[%clk 0:01:14]}
30... Qe6 {[%clk 0:01:23.1]} 31. f4 {[%clk 0:01:13.1]} 31... exf3+ {[%clk
0:01:22]} 32. exf3 {[%clk 0:01:15]} 32... Rc1 {[%clk 0:01:08.7]} 33. f4 {[%clk
0:01:13.3]} 33... b6 {[%clk 0:01:04.2]} 34. d7 {[%clk 0:00:57]} 34... Qb3 {[%clk
0:00:52.6]} 35. Qd6 {[%clk 0:00:43.8]} 35... Qc3 {[%clk 0:00:26.6]} 36. Qe6+
{[%clk 0:00:35.8]} 36... Kg7 {[%clk 0:00:24.1]} 37. Qe7+ {[%clk 0:00:33.3]}
37... Kh6 {[%clk 0:00:21.1]} 38. Nf7+ {[%clk 0:00:32.4]} 38... Kg7 {[%clk
0:00:20.6]} 39. Ng5+ {[%clk 0:00:33.2]} 1-0

[Event "*** Titled Tuesday Blitz"]
[Site "Chess.com"]
[Date "2019.06.04"]
[Round "2"]
[White "Hikaru"]
[Black "LuckIsMySkill"]
[Result "1/2-1/2"]
[WhiteElo "3198"]
[BlackElo "2653"]
[TimeControl "180+2"]
[EndTime "13:23:44 PDT"]
[Termination "Game drawn by repetition"]

1. Nf3 {[%clk 0:03:01.9]} 1... Nf6 {[%clk 0:02:59.7]} 2. b3 {[%clk 0:03:03.4]}
2... b6 {[%clk 0:02:59.5]} 3. Bb2 {[%clk 0:03:04.4]} 3... Bb7 {[%clk 0:03:01]}
4. d4 {[%clk 0:03:05.3]} 4... g6 {[%clk 0:03:02.3]} 5. e3 {[%clk 0:03:06]} 5...
Bg7 {[%clk 0:03:03.8]} 6. c4 {[%clk 0:03:07.7]} 6... O-O {[%clk 0:03:05.3]} 7.
Be2 {[%clk 0:03:09.5]} 7... e6 {[%clk 0:03:06.8]} 8. O-O {[%clk 0:03:11.2]} 8...
a5 {[%clk 0:03:05.5]} 9. a3 {[%clk 0:03:10.8]} 9... c5 {[%clk 0:03:04.9]} 10.
dxc5 {[%clk 0:03:06.7]} 10... bxc5 {[%clk 0:03:06]} 11. Nc3 {[%clk 0:03:07.9]}
11... Ne4 {[%clk 0:03:06.5]} 12. Qc2 {[%clk 0:03:08.7]} 12... Nxc3 {[%clk
0:02:42.2]} 13. Bxc3 {[%clk 0:03:10.6]} 13... d6 {[%clk 0:02:43.3]} 14. Rfd1
{[%clk 0:03:05.4]} 14... Ra6 {[%clk 0:02:43.8]} 15. Rd2 {[%clk 0:03:01.6]} 15...
Nd7 {[%clk 0:02:33.7]} 16. Bxg7 {[%clk 0:02:59.6]} 16... Kxg7 {[%clk 0:02:34.8]}
17. Rad1 {[%clk 0:03:01.5]} 17... Qe7 {[%clk 0:02:35.4]} 18. Qb2+ {[%clk
0:02:52.1]} 18... Nf6 {[%clk 0:02:31.9]} 19. b4 {[%clk 0:02:52.3]} 19... axb4
{[%clk 0:02:32.8]} 20. axb4 {[%clk 0:02:54.2]} 20... Bxf3 {[%clk 0:02:25.5]} 21.
Bxf3 {[%clk 0:02:53.5]} 21... cxb4 {[%clk 0:02:23.8]} 22. Qxb4 {[%clk
0:02:55.4]} 22... Qc7 {[%clk 0:01:43.3]} 23. h4 {[%clk 0:02:28.9]} 23... Rb8
{[%clk 0:01:43.2]} 24. Qc3 {[%clk 0:02:30.1]} 24... Qc5 {[%clk 0:01:35.8]} 25.
g4 {[%clk 0:02:26.2]} 25... h6 {[%clk 0:01:36.9]} 26. Kg2 {[%clk 0:02:22.2]}
26... Ra3 {[%clk 0:01:28.6]} 27. Qd4 {[%clk 0:02:18.4]} 27... Qxd4 {[%clk
0:01:28]} 28. Rxd4 {[%clk 0:02:19.7]} 28... Rc3 {[%clk 0:01:25.7]} 29. Be2
{[%clk 0:02:15.7]} 29... Rb2 {[%clk 0:01:25.5]} 30. R4d2 {[%clk 0:02:16.7]}
30... Rcc2 {[%clk 0:01:26.4]} 31. Rxc2 {[%clk 0:02:16.6]} 31... Rxc2 {[%clk
0:01:27.7]} 32. Kf1 {[%clk 0:02:17.7]} 32... d5 {[%clk 0:01:28.7]} 33. g5 {[%clk
0:02:18.9]} 33... hxg5 {[%clk 0:01:29.2]} 34. hxg5 {[%clk 0:02:20.8]} 34... Ne4
{[%clk 0:01:28.3]} 35. cxd5 {[%clk 0:02:22.2]} 35... exd5 {[%clk 0:01:29.4]} 36.
Rd4 {[%clk 0:02:16.6]} 36... Nxg5 {[%clk 0:01:28.7]} 37. Rxd5 {[%clk 0:02:17.4]}
37... Ne6 {[%clk 0:01:28.7]} 38. Rd6 {[%clk 0:02:15.3]} 38... Rc5 {[%clk
0:01:29.3]} 39. Bg4 {[%clk 0:02:15.6]} 39... Kf6 {[%clk 0:01:30.1]} 40. Ra6
{[%clk 0:02:16.3]} 40... Ke7 {[%clk 0:01:29.1]} 41. Ke2 {[%clk 0:02:16.8]} 41...
Rc2+ {[%clk 0:01:29.5]} 42. Kf3 {[%clk 0:02:18.3]} 42... Rb2 {[%clk 0:01:30.8]}
43. Kg3 {[%clk 0:02:19]} 43... Ng5 {[%clk 0:01:31]} 44. f3 {[%clk 0:02:13.8]}
44... Nh7 {[%clk 0:01:31.2]} 45. Ra7+ {[%clk 0:02:14.2]} 45... Kf8 {[%clk
0:01:31.9]} 46. Kf4 {[%clk 0:02:12.4]} 46... Nf6 {[%clk 0:01:32.7]} 47. Bc8
{[%clk 0:02:12.1]} 47... Rb3 {[%clk 0:01:23.4]} 48. Bb7 {[%clk 0:02:13]} 48...
Nh5+ {[%clk 0:01:23.9]} 49. Ke4 {[%clk 0:02:14.2]} 49... Ng3+ {[%clk 0:01:19.7]}
50. Kf4 {[%clk 0:02:13.2]} 50... Ne2+ {[%clk 0:01:16.2]} 51. Ke4 {[%clk
0:02:09.4]} 51... f5+ {[%clk 0:01:11.6]} 52. Ke5 {[%clk 0:02:08.4]} 52... Rxe3+
{[%clk 0:00:59.5]} 53. Kf6 {[%clk 0:02:09.4]} 53... Nf4 {[%clk 0:01:00.7]} 54.
Kg5 {[%clk 0:02:08.1]} 54... Re7 {[%clk 0:00:21.3]} 55. Kxf4 {[%clk 0:02:03]}
55... Kg7 {[%clk 0:00:21.5]} 56. Kg5 {[%clk 0:02:04.6]} 56... Rf7 {[%clk
0:00:22.1]} 57. f4 {[%clk 0:02:04.3]} 57... Re7 {[%clk 0:00:23.1]} 58. Kh4
{[%clk 0:02:00.5]} 58... Kh6 {[%clk 0:00:20.7]} 59. Kg3 {[%clk 0:02:01.7]} 59...
Kg7 {[%clk 0:00:21.2]} 60. Kf2 {[%clk 0:02:03.2]} 60... Kh6 {[%clk 0:00:22.4]}
61. Kg3 {[%clk 0:02:04.7]} 61... Kg7 {[%clk 0:00:23.3]} 62. Kh3 {[%clk
0:02:06.3]} 62... Kh6 {[%clk 0:00:24.6]} 63. Kh4 {[%clk 0:02:08.1]} 63... Rd7
{[%clk 0:00:25.6]} 64. Kh3 {[%clk 0:02:08.4]} 64... Rc7 {[%clk 0:00:25.9]} 65.
Kg3 {[%clk 0:02:09.2]} 65... Re7 {[%clk 0:00:26]} 66. Kf2 {[%clk 0:02:11.1]}
66... Kg7 {[%clk 0:00:26.9]} 67. Kf3 {[%clk 0:02:12.7]} 67... Kh6 {[%clk
0:00:27.9]} 68. Kg3 {[%clk 0:02:14.6]} 1/2-1/2

[Event "*** Titled Tuesday Blitz"]
[Site "Chess.com"]
[Date "2019.06.04"]
[Round "2"]
[White "Zhigalko_Sergei"]
[Black "Zarikovs1999"]
[Result "0-1"]
[WhiteElo "2907"]
[BlackElo "2640"]
[TimeControl "180+2"]
[EndTime "13:23:44 PDT"]
[Termination "Zarikovs1999 won by checkmate"]

1. e4 {[%clk 0:03:01.9]} 1... c5 {[%clk 0:02:52.6]} 2. Nf3 {[%clk 0:03:02.6]}
2... Nc6 {[%clk 0:02:53.3]} 3. c3 {[%clk 0:03:03.4]} 3... Nf6 {[%clk 0:02:35.8]}
4. e5 {[%clk 0:03:03.7]} 4... Nd5 {[%clk 0:02:36.2]} 5. Bc4 {[%clk 0:03:04.5]}
5... Nb6 {[%clk 0:02:35.5]} 6. Bb3 {[%clk 0:03:05.8]} 6... c4 {[%clk 0:02:35]}
7. Bc2 {[%clk 0:03:06.8]} 7... d6 {[%clk 0:02:32.8]} 8. exd6 {[%clk 0:03:07.6]}
8... Qxd6 {[%clk 0:02:34.7]} 9. O-O {[%clk 0:03:09.1]} 9... g6 {[%clk
0:02:21.5]} 10. b3 {[%clk 0:03:07.2]} 10... Bg7 {[%clk 0:02:07.9]} 11. Na3
{[%clk 0:03:08.1]} 11... cxb3 {[%clk 0:02:04.2]} 12. axb3 {[%clk 0:03:10]} 12...
O-O {[%clk 0:02:05]} 13. Nc4 {[%clk 0:03:05.1]} 13... Nxc4 {[%clk 0:01:47.4]}
14. bxc4 {[%clk 0:03:07]} 14... Be6 {[%clk 0:01:48.4]} 15. Qe2 {[%clk
0:02:46.2]} 15... Ne5 {[%clk 0:01:44.6]} 16. Nxe5 {[%clk 0:02:42.6]} 16... Bxe5
{[%clk 0:01:46.5]} 17. c5 {[%clk 0:02:05.3]} 17... Bxh2+ {[%clk 0:01:30.7]} 18.
Kh1 {[%clk 0:02:05.8]} 18... Qe5 {[%clk 0:01:32.1]} 19. Qf3 {[%clk 0:02:03]}
19... Bd5 {[%clk 0:01:22.8]} 20. Qg4 {[%clk 0:01:20.4]} 20... h5 {[%clk
0:01:06.4]} 21. Qh3 {[%clk 0:01:17]} 21... Bf4 {[%clk 0:01:04]} 22. d4 {[%clk
0:01:01.3]} 22... Qg5 {[%clk 0:00:58.3]} 23. Bxf4 {[%clk 0:00:56.9]} 23... Qxf4
{[%clk 0:00:54.5]} 24. Rae1 {[%clk 0:00:58.8]} 24... b6 {[%clk 0:00:34.7]} 25.
Rxe7 {[%clk 0:00:25.2]} 25... bxc5 {[%clk 0:00:32.8]} 26. dxc5 {[%clk
0:00:27.1]} 26... Rfe8 {[%clk 0:00:25.8]} 27. Rd7 {[%clk 0:00:15]} 27... Be6
{[%clk 0:00:24]} 28. Qd3 {[%clk 0:00:15.6]} 28... Bxd7 {[%clk 0:00:21]} 29. Qxd7
{[%clk 0:00:17.5]} 29... Qc4 {[%clk 0:00:18.6]} 30. Rb1 {[%clk 0:00:14.1]} 30...
Qxc5 {[%clk 0:00:10.3]} 31. Rb7 {[%clk 0:00:12.4]} 31... Re1+ {[%clk 0:00:10.1]}
32. Kh2 {[%clk 0:00:13.5]} 32... Qxf2 {[%clk 0:00:09.7]} 33. Bb3 {[%clk
0:00:08.3]} 33... Qf4+ {[%clk 0:00:08.5]} 34. g3 {[%clk 0:00:07.3]} 34... Qf2+
{[%clk 0:00:08.4]} 35. Kh3 {[%clk 0:00:08.3]} 35... Rh1# {[%clk 0:00:10.3]} 0-1

[Event "*** Titled Tuesday Blitz"]
[Site "Chess.com"]
[Date "2019.06.04"]
[Round "2"]
[White "sergoy"]
[Black "vovachesss"]
[Result "0-1"]
[WhiteElo "2818"]
[BlackElo "2616"]
[TimeControl "180+2"]
[EndTime "13:23:44 PDT"]
[Termination "vovachesss won by resignation"]

1. d4 {[%clk 0:02:52.4]} 1... Nc6 {[%clk 0:02:51]} 2. c4 {[%clk 0:02:49.9]} 2...
d6 {[%clk 0:02:52]} 3. Nc3 {[%clk 0:02:48]} 3... g6 {[%clk 0:02:53.2]} 4. d5
{[%clk 0:02:48.4]} 4... Ne5 {[%clk 0:02:54]} 5. e4 {[%clk 0:02:49.5]} 5... Bg7
{[%clk 0:02:55]} 6. Be2 {[%clk 0:02:50.6]} 6... e6 {[%clk 0:02:56.2]} 7. f4
{[%clk 0:02:49.3]} 7... Nd7 {[%clk 0:02:57.1]} 8. Nf3 {[%clk 0:02:50.2]} 8...
Ngf6 {[%clk 0:02:57.3]} 9. dxe6 {[%clk 0:02:43.9]} 9... fxe6 {[%clk 0:02:57.2]}
10. e5 {[%clk 0:02:45.2]} 10... dxe5 {[%clk 0:02:56.7]} 11. fxe5 {[%clk
0:02:46.2]} 11... Ng8 {[%clk 0:01:59.9]} 12. Bg5 {[%clk 0:02:46.4]} 12... Ne7
{[%clk 0:01:56.4]} 13. Ne4 {[%clk 0:02:45.6]} 13... Nxe5 {[%clk 0:01:47.5]} 14.
Qxd8+ {[%clk 0:02:31]} 14... Kxd8 {[%clk 0:01:49.4]} 15. Nxe5 {[%clk 0:02:30.1]}
15... Bxe5 {[%clk 0:01:50.1]} 16. O-O-O+ {[%clk 0:02:09.3]} 16... Ke8 {[%clk
0:01:46.6]} 17. Nf6+ {[%clk 0:02:03.5]} 17... Bxf6 {[%clk 0:01:46]} 18. Bxf6
{[%clk 0:02:04.4]} 18... Rf8 {[%clk 0:01:47.6]} 19. Be5 {[%clk 0:02:06]} 19...
Bd7 {[%clk 0:01:43.4]} 20. h4 {[%clk 0:02:06.3]} 20... Bc6 {[%clk 0:01:32.8]}
21. h5 {[%clk 0:02:06.1]} 21... Bxg2 {[%clk 0:01:32.6]} 22. Rh2 {[%clk
0:02:00.4]} 22... Be4 {[%clk 0:01:33.4]} 23. Bxc7 {[%clk 0:01:54.8]} 23... Rc8
{[%clk 0:01:32.8]} 24. Bd6 {[%clk 0:01:56]} 24... Rf7 {[%clk 0:01:03.5]} 25. b3
{[%clk 0:01:47.7]} 25... Nd5 {[%clk 0:00:43.6]} 26. hxg6 {[%clk 0:01:36.9]}
26... Bxg6 {[%clk 0:00:43.7]} 27. Kb2 {[%clk 0:01:37.4]} 27... Ne3 {[%clk
0:00:24]} 28. Rg1 {[%clk 0:01:34.2]} 28... Nf5 {[%clk 0:00:18.8]} 29. Be5 {[%clk
0:01:33]} 29... Rd8 {[%clk 0:00:17]} 30. c5 {[%clk 0:01:32.9]} 30... Rd2+ {[%clk
0:00:16.8]} 31. Kc3 {[%clk 0:01:33.8]} 31... Rd5 {[%clk 0:00:13.9]} 32. Re1
{[%clk 0:01:03.2]} 32... Rxc5+ {[%clk 0:00:14.7]} 33. Bc4 {[%clk 0:01:03.8]}
33... b5 {[%clk 0:00:12.1]} 34. Kb4 {[%clk 0:01:04.7]} 34... Rxe5 {[%clk
0:00:13.1]} 35. Rxe5 {[%clk 0:00:50.7]} 35... bxc4 {[%clk 0:00:13.9]} 36. bxc4
{[%clk 0:00:51.7]} 36... Nd4 {[%clk 0:00:14.3]} 37. Kc5 {[%clk 0:00:40.3]} 37...
Rd7 {[%clk 0:00:14.1]} 38. Rf2 {[%clk 0:00:28.1]} 38... Ke7 {[%clk 0:00:13.8]}
39. a4 {[%clk 0:00:29.2]} 39... Nb3+ {[%clk 0:00:13.6]} 40. Kb4 {[%clk 0:00:30]}
40... Nc1 {[%clk 0:00:14.6]} 0-1

[Event "*** Titled Tuesday Blitz"]
[Site "Chess.com"]
[Date "2019.06.04"]
[Round "2"]
[White "Muracle"]
[Black "TomsKantans"]
[Result "1-0"]
[WhiteElo "2536"]
[BlackElo "2530"]
[TimeControl "180+2"]
[EndTime "13:23:45 PDT"]
[Termination "Muracle won by checkmate"]

1. Nf3 {[%clk 0:03:01.9]} 1... c5 {[%clk 0:02:55.3]} 2. g3 {[%clk 0:03:02.6]}
2... Nc6 {[%clk 0:02:55.5]} 3. d4 {[%clk 0:03:03.4]} 3... cxd4 {[%clk 0:02:46]}
4. Nxd4 {[%clk 0:02:50.7]} 4... e5 {[%clk 0:02:47]} 5. Nb3 {[%clk 0:02:50.3]}
5... d5 {[%clk 0:02:43.2]} 6. Bg2 {[%clk 0:02:50.3]} 6... Be6 {[%clk 0:02:42.8]}
7. O-O {[%clk 0:02:51.1]} 7... Be7 {[%clk 0:02:28.5]} 8. Nc3 {[%clk 0:02:33.3]}
8... d4 {[%clk 0:02:25.7]} 9. Ne4 {[%clk 0:02:32.8]} 9... Nf6 {[%clk 0:02:03.7]}
10. Nec5 {[%clk 0:02:31.6]} 10... Bd5 {[%clk 0:02:04.3]} 11. e4 {[%clk
0:02:30.6]} 11... Bc4 {[%clk 0:02:05.2]} 12. Re1 {[%clk 0:02:30.2]} 12... O-O
{[%clk 0:01:47.6]} 13. Nd3 {[%clk 0:02:28.7]} 13... Nd7 {[%clk 0:01:43.4]} 14.
h4 {[%clk 0:02:16.2]} 14... a5 {[%clk 0:01:43.9]} 15. Nd2 {[%clk 0:02:14.1]}
15... Be6 {[%clk 0:01:44.9]} 16. Nf3 {[%clk 0:02:14.4]} 16... f6 {[%clk
0:01:36.1]} 17. c3 {[%clk 0:02:10]} 17... dxc3 {[%clk 0:01:34.1]} 18. bxc3
{[%clk 0:02:11.9]} 18... Nc5 {[%clk 0:01:35.2]} 19. Nxc5 {[%clk 0:02:04.5]}
19... Bxc5 {[%clk 0:01:37.1]} 20. Qa4 {[%clk 0:02:03.8]} 20... Qb6 {[%clk
0:01:32.8]} 21. Be3 {[%clk 0:02:05.1]} 21... Bxe3 {[%clk 0:01:33.1]} 22. Rxe3
{[%clk 0:02:06.4]} 22... Rfd8 {[%clk 0:01:30.7]} 23. Ree1 {[%clk 0:02:06.5]}
23... Qc5 {[%clk 0:01:31.2]} 24. Rab1 {[%clk 0:02:05.8]} 24... Qxc3 {[%clk
0:01:23.9]} 25. Rxb7 {[%clk 0:02:01]} 25... Nd4 {[%clk 0:00:31.3]} 26. Re3
{[%clk 0:01:59]} 26... Qa1+ {[%clk 0:00:32.2]} 27. Kh2 {[%clk 0:01:58.1]} 27...
Qxa2 {[%clk 0:00:32.2]} 28. Ra3 {[%clk 0:00:57.4]} 28... Qxf2 {[%clk 0:00:29.7]}
29. Nxd4 {[%clk 0:00:56.8]} 29... Qxd4 {[%clk 0:00:19.1]} 30. Qc6 {[%clk
0:00:55.4]} 30... Qd6 {[%clk 0:00:19.7]} 31. Qc1 {[%clk 0:00:54.6]} 31... a4
{[%clk 0:00:19.4]} 32. Rc3 {[%clk 0:00:53.8]} 32... a3 {[%clk 0:00:18.8]} 33.
Rc6 {[%clk 0:00:52.5]} 33... Qd2 {[%clk 0:00:11.7]} 34. Qc5 {[%clk 0:00:50.7]}
34... Rd7 {[%clk 0:00:10]} 35. Rbb6 {[%clk 0:00:19]} 35... a2 {[%clk 0:00:10.2]}
36. Rc8+ {[%clk 0:00:19]} 36... Rxc8 {[%clk 0:00:11]} 37. Qxc8+ {[%clk
0:00:20.9]} 37... Kf7 {[%clk 0:00:11.5]} 38. Rb8 {[%clk 0:00:22.8]} 38... Qd6
{[%clk 0:00:10.9]} 39. Qe8# {[%clk 0:00:23.4]} 1-0